Cogmind - Beta 17 @@@ ROGUE MODE // 2026.07.26 @ 23:35:57 Player: LanceLander Result: Destroyed by S-27 Virus with Autogun Performance ------------- Evolutions (5) 2500 Regions Visited (17) 3400 Robots Destroyed (206) 1030 Value Destroyed (9832) 9832 Prototype IDs (32) 640 Alien Tech Used (0) 0 Bonus (6571) 6571 TOTAL SCORE: 23973 Bonus ------- High Alert Combat Kills 702 Follower Combat Kills 2269 Entered Garrisons 800 Used RIF Installer 2500 Aligned with FarCom 300 Cogmind --------- Core Integrity 0/1000 Matter 296/300 Energy 159/160 System Corruption 19% Temperature Cool (9) Movement Flying (24) Location -5/Upper Caves Parts ------- > --- POWER (2) -------- Light Nuclear Core > --- PROPULSION (4) --- Improved Surge Thruster Improved Surge Thruster Improved Surge Thruster > --- UTILITY (8) ------ Reaction Control System Advanced System Shield > --- WEAPON (3) ------- Powered Hammer (fused) > --- INVENTORY (5) ---- Armored Medium Treads Hardened Light Armor Plating Relay Coupler [NC] (28) Relay Coupler [Specialist] (23) Wave Gun Peak State ------------ > --- POWER ------------ Micro Fission Core Antimatter Reactor > --- PROPULSION ------- Thunder Leg Thunder Leg Advanced VSS Leg Advanced VSS Leg > --- UTILITY ---------- Advanced Cooling System Improved Coolant Injector Huge Storage Unit Advanced Particle Charger Microactuators Improved Focal Shield Relay Coupler [NC] Relay Coupler [Swarmer] > --- WEAPON ----------- Gatling Laser Heavy Plasma Cannon Gauss Rifle > --- INVENTORY -------- Flexi-carbon Leg Armored Leg Armored Wheel Matter Filter Relay Coupler [NC] Relay Coupler [Duelist] Relay Coupler [Demolisher] Relay Coupler [Specialist] Gatling Laser Gatling Laser Improved Remote Datajack Improved Remote Datajack [Rating: 91] Favorites ----------- Power Improved Deuterium Engine Engine Improved Deuterium Engine Power Core Light Nuclear Core Reactor Light Antimatter Reactor Propulsion Carbon-fiber Leg Treads Improved Medium Treads Leg Carbon-fiber Leg Wheel Armored Wheel Hover Unit Backup Propulsion III Flight Unit Flying Fortress v7 Utility Relay Coupler [Sentry] Device Advanced Cooling System Storage Medium Storage Unit Processor Visual Processing Unit Hackware Relay Coupler [Sentry] Protection Backup Plating III Weapon Remote Datajack Energy Gun Pulse Rifle Energy Cannon Phase Cannon Ballistic Gun Precision Assault Rifle Ballistic Cannon Enhanced Gauss Cannon Launcher Shock Bomb Launcher Special Weapon Remote Datajack Impact Weapon Powered Hammer Slashing Weapon Axe Piercing Weapon Heavy Pick Special Melee Weapon Improved Datajack Build | -11 -10 -10 -9 -9 -9 -8 -8 -7 -7 -7 -7 -6 -6 -6 -6 -5 -5 ------- Run | Yrd Mat Min Mat Min Exi Min Mat Fac Gar Fac Gar Fac Gar Fac Gar Fac Upp Slots Evolved 10 | . . . 2 . . . 2 2 . . . 2 . . . 2 . Power 1 | . . . . . . . . 1 . . . . . . . . . Propulsion 2 | . . . . . . . 2 . . . . . . . . . . Utility 6 | . . . 2 . . . . 1 . . . 2 . . . 1 . Weapon 1 | . . . . . . . . . . . . . . . . 1 . Parts Attached 219 | 7 3 15 9 2 . 1 11 4 17 14 25 17 7 19 25 38 5 Power 33 | 1 1 2 . 1 . . 1 1 6 1 3 3 1 5 3 3 1 Engine 11 | 1 . 1 . 1 . . . . 1 1 . 2 . 2 2 . . Core 19 | . 1 1 . . . . 1 1 5 . 3 . 1 3 . 2 1 Reactor 3 | . . . . . . . . . . . . 1 . . 1 1 . Propulsion 55 | 2 . 6 2 . . . 1 . . 5 5 8 1 7 5 13 . Treads 1 | . . . . . . . . . . . . . . 1 . . . Leg 45 | 2 . 5 2 . . . . . . 4 5 6 1 6 5 9 . Wheel 2 | . . . . . . . . . . 1 . . . . . 1 . Hover 2 | . . . . . . . . . . . . 2 . . . . . Flight 5 | . . 1 . . . . 1 . . . . . . . . 3 . Utility 71 | 2 1 3 4 . . . 2 . 6 3 12 4 4 4 12 12 2 Device 16 | 1 . 2 . . . . . . 2 . . . . 1 3 5 2 Storage 4 | 1 1 . . . . . 1 . . . 1 . . . . . . Processor 5 | . . . 2 . . . . . . 1 1 . . . . 1 . Hackware 37 | . . . . . . . . . 3 2 9 3 4 3 8 5 . Protection 9 | . . 1 2 . . . 1 . 1 . 1 1 . . 1 1 . Artifact . | . . . . . . . . . . . . . . . . . . Weapon 60 | 2 1 4 3 1 . 1 7 3 5 5 5 2 1 3 5 10 2 Energy Gun 15 | 1 1 2 . . . . 2 . . 4 . . . . 2 3 . Energy Cannon 7 | . . . . . . 1 . . . . . . . 1 1 4 . Ballistic Gun 11 | 1 . . 2 . . . . 2 2 . 1 1 . . . 1 1 Ballistic Cannon 4 | . . 1 . . . . . . . . 2 . . . . 1 . Launcher 8 | . . 1 . 1 . . 4 1 . . 1 . . . . . . Special Weapon 6 | . . . . . . . . . . . 1 . 1 2 1 1 . Impact Weapon 3 | . . . . . . . . . 1 1 . . . . . . 1 Slashing Weapon 2 | . . . . . . . 1 . . . . . . . 1 . . Piercing Weapon 1 | . . . . . . . . . 1 . . . . . . . . Special Melee Weapon 3 | . . . 1 . . . . . 1 . . 1 . . . . . Unidentified Prototypes 5 | . . . 1 . . . . 1 . . . 1 . 1 . 1 . Corrupted Parts 16 | . . 7 . . . . . . 2 3 1 . . . . 2 1 System Corruption 96 | . . 54 . . . . . . 7 10 15 . . . . 2 8 Parts Lost 79 | . . 3 4 2 . 1 . 1 2 1 10 3 1 5 13 32 1 Power 17 | . . . . 1 . . . 1 2 . 2 . . 3 2 6 . Propulsion 27 | . . 2 2 . . . . . . 1 5 3 . . 4 10 . Utility 16 | . . . 1 . . 1 . . . . 3 . . 1 3 7 . Weapon 19 | . . 1 1 1 . . . . . . . . 1 1 4 9 1 Highest Loss Streak 15 | . . 2 3 1 . 1 . 1 1 1 5 2 1 1 3 15 1 To Critical Strikes 2 | . . . 1 . . . . . . . . . . . . 1 . Average Backups 13 | 2 8 9 8 7 8 6 9 9 9 5 10 16 23 24 22 18 4 Power 1 | . 1 1 1 . 2 1 1 . . . . 2 3 . 1 1 . Propulsion 2 | 1 1 1 2 2 2 3 2 . . . . 2 5 5 3 4 1 Utility 7 | . 3 4 2 3 2 1 2 3 3 2 7 10 12 14 10 10 2 Weapon 2 | . 2 3 2 1 . . 3 5 5 2 2 1 1 2 5 1 . Tool/Special . | . . . . . . . . . . . . . . . . . . Unused Backups 44 | . 3 6 3 . 3 . 6 . . 2 1 . 1 2 2 7 8 Power 4 | . . 1 . . 2 . 1 . . . . . . . . . . Propulsion 13 | . 2 1 2 . . . 3 . . . . . . 1 . . 4 Utility 17 | . 1 1 . . 1 . 1 . . 2 1 . 1 1 2 3 3 Weapon 9 | . . 3 1 . . . 1 . . . . . . . . 3 1 Tool/Special 1 | . . . . . . . . . . . . . . . . 1 . Average Slot Usage (%) 90 | . 100 97 91 98 100 100 71 71 73 79 93 93 99 98 97 88 36 Engine 6 | . 8 1 11 10 11 11 1 . 2 9 7 10 1 2 5 6 . Core 4 | . 5 12 . . . . 7 9 9 4 5 . 4 8 3 3 1 Leg 19 | . 28 24 21 22 22 22 . . . 6 28 20 26 25 25 21 . Flight 1 | . . 3 . . . . 8 7 7 5 . . . . . . 17 Device 3 | . 14 11 4 . . 9 . 6 5 . . . . 3 3 3 2 Storage 7 | . 14 14 11 11 11 11 9 7 7 2 7 6 6 6 6 4 . Processor 6 | . . . 18 22 22 22 18 15 15 11 2 3 . . . . . Hackware 16 | . . . . . . . . . 1 21 18 29 32 32 33 27 5 Protection 4 | . . 2 9 11 11 1 8 7 6 . 5 5 6 2 . 2 . Energy Gun 4 | . 14 24 3 7 11 11 11 . . 4 . . . . 2 . . Energy Cannon 1 | . . . . . . 6 1 . . . . . . 3 2 5 . Ballistic Gun 2 | . 14 . 3 9 . . . 2 5 . . 1 4 2 . . 2 Ballistic Cannon 2 | . . 1 6 . . . . . . . 5 5 1 2 . . . Launcher 1 | . . . . 3 11 4 4 11 5 . . . . . . 2 . Special Weapon 2 | . . . . . . . . . . . 5 4 5 3 3 3 . Peak Build Rating 91 | 7 10 23 29 26 24 25 53 58 64 66 50 67 69 75 81 91 37 Average Rating 49 | 5 8 13 26 22 23 24 51 56 59 55 43 58 67 68 68 72 30 On Entrance 37 | . 7 10 23 25 22 24 25 51 55 63 37 49 65 66 75 60 23 Avg Prop Armor Cover (%) 12 | . . 3 . . . . . . . 5 . . . 7 . 27 14 Naked Turns 33 | . . . . . . . . . . . . . . . . 33 . Heaviest Build 131 | 12 20 34 37 29 27 27 39 49 43 37 105 109 112 117 123 131 11 Greatest Support 92 | 20 20 30 30 30 30 30 50 50 50 50 61 79 79 74 66 92 18 Greatest Overweight (x) 3 | 1 . 2 2 . . . . . . 2 1 2 1 1 3 1 . Average Overweight (x) . | . . 1 . . . . . . . . . 1 1 1 1 . . Largest Inventory Capacity 25 | 8 10 10 10 10 10 10 25 10 10 10 25 25 25 25 25 25 5 Average Capacity 15 | 6 9 10 10 10 10 10 10 10 10 6 11 25 25 25 25 23 5 Most Carried 25 | 4 10 10 10 10 10 10 10 10 10 10 13 21 25 25 25 25 5 Average Carried 14 | 2 8 9 8 9 9 9 9 9 9 5 10 16 23 24 22 18 4 Final Capacity 25 | 8 10 10 10 10 10 10 10 10 10 10 25 25 25 25 25 5 5 Final Carried 25 | 4 10 10 9 10 10 10 10 10 10 10 13 21 25 24 22 5 5 Class Distribution -------------------- 34% | Bothacker-Mutant 33% | Mutant 13% | Scavenger-Mutant 8% | Botlord-Mutant 4% | Botlord-Skirmisher Dominant Class ---------------- Mutant | -10/Materials Scavenger-Mutant | -10/Mines Mutant | -9/Materials Mutant | -9/Mines Mutant | -9/Exiles Mutant | -8/Mines Mutant | -8/Materials Mutant | -7/Factory Mutant | -7/Garrison Mutant | -7/Factory Bothacker-Mutant | -7/Garrison Bothacker-Mutant | -6/Factory Bothacker-Mutant | -6/Garrison Bothacker-Mutant | -6/Factory Botlord-Mutant | -6/Garrison Botlord-Skirmisher | -5/Factory Sprinter | -5/Upper Caves Resources | -11 -10 -10 -9 -9 -9 -8 -8 -7 -7 -7 -7 -6 -6 -6 -6 -5 -5 ----------- Run | Yrd Mat Min Mat Min Exi Min Mat Fac Gar Fac Gar Fac Gar Fac Gar Fac Upp Matter Collected 7489 | 291 107 152 869 141 . 59 280 159 974 200 930 676 326 604 799 731 191 Remotely . | . . . . . . . . . . . . . . . . . . Salvage Created 6683 | 116 293 312 754 243 . 7 730 445 1213 180 244 124 46 719 520 578 159 Parts 377 | 3 22 17 73 12 . 8 48 16 54 9 17 4 10 27 22 33 2 Haulers Intercepted 4 | . . . 1 . . . 2 . . . . . . 1 . . . Recyclers Shooed 1 | . . 1 . . . . . . . . . . . . . . . Parts Field Recycled . | . . . . . . . . . . . . . . . . . . Retrieved Matter . | . . . . . . . . . . . . . . . . . . Parts Self-Destructed 1 | . . . . . . . . . . . . . . . . . 1 Prevented . | . . . . . . . . . . . . . . . . . . Parts Restored . | . . . . . . . . . . . . . . . . . . Kills | -11 -10 -10 -9 -9 -9 -8 -8 -7 -7 -7 -7 -6 -6 -6 -6 -5 -5 ------- Run | Yrd Mat Min Mat Min Exi Min Mat Fac Gar Fac Gar Fac Gar Fac Gar Fac Upp Combat Hostiles Destroyed 178 | . 9 7 34 10 . 6 12 9 26 4 11 4 3 13 14 14 2 Melee 3 | . . . . . . . . . 1 2 . . . . . . . Guns 48 | . 9 7 5 2 . 2 3 . 8 2 . . 1 3 3 1 2 Cannons 48 | . . . 18 . . . . . . . 5 4 . 9 4 8 . AOE 71 | . . . 11 8 . 4 7 8 16 . 5 . 2 . 7 3 . Classes Destroyed 17 | 2 4 1 5 . . . . 1 1 . 1 . 1 . 1 . . Worker 3 | . . . 1 . . . 1 . . 1 . . . . . . . Builder 7 | . . . 4 . . . 3 . . . . . . . . . . Tunneler 2 | 1 . . 1 . . . . . . . . . . . . . . Hauler 4 | . . . 1 . . . 2 . . . . . . 1 . . . Recycler 4 | 1 . 1 . 2 . . . . . . . . . . . . . Operator 2 | . 1 . 1 . . . . . . . . . . . . . . Watcher 4 | . 1 . 2 . . . . . 1 . . . . . . . . Swarmer 71 | . 3 3 14 7 . 6 3 3 10 2 5 1 . 2 7 3 2 Saboteur 2 | . . . . . . . . . . . . . 2 . . . . Grunt 51 | . 6 2 9 2 . . 5 5 12 2 1 1 . 5 . 1 . Brawler 1 | . . . 1 . . . . . . . . . . . . . . Duelist 5 | . . . 1 1 . . . . . . . . . . 3 . . Sentry 22 | . . 2 9 . . . 4 . 2 . . . . 1 3 1 . Specialist 5 | . . . . . . . . . 1 . 1 . . . 1 2 . Hunter 5 | . . . . . . . . 1 1 . . . . 1 . 2 . Programmer 17 | . . . . . . . . . . . 4 3 1 4 . 5 . Behemoth 1 | . . . . . . . . . . . . . . . 1 . . Decomposer 1 | . . . . . . . . . . . . . . . . . 1 Packrat 1 | . . . . . . . . . . . . . . . . . 1 Best Kill Streak 8 | 2 2 3 8 4 . 3 5 5 7 2 4 1 2 2 3 2 2 Combat Bots Only 7 | . 2 2 4 4 . 3 3 5 7 2 4 1 2 2 3 2 2 Max Kills in Single Turn 5 | 1 2 1 5 2 . 2 3 3 4 1 2 1 2 1 3 1 1 Gunslinging 1 | . 1 . . . . . . . . . . . . . . . . Exploded 4 | . . . 4 2 . 2 3 3 4 . 2 . 2 . 3 1 . Melee 1 | . . . . . . . . . 1 1 . . . . . . . Uniques/NPCs Destroyed . | . . . . . . . . . . . . . . . . . . Combat | -11 -10 -10 -9 -9 -9 -8 -8 -7 -7 -7 -7 -6 -6 -6 -6 -5 -5 -------- Run | Yrd Mat Min Mat Min Exi Min Mat Fac Gar Fac Gar Fac Gar Fac Gar Fac Upp Hostile Shots Fired 1482 | . 26 50 114 16 . 11 22 31 174 53 114 54 7 160 256 376 18 Missed 520 | . 8 8 37 4 . 4 12 15 76 22 30 13 3 65 112 105 6 Hits 962 | . 18 42 77 12 . 7 10 16 98 31 84 41 4 95 144 271 12 Melee 29 | . . . 1 . . . . . . . . . . . 23 5 . Projectile 933 | . 18 42 76 12 . 7 10 16 98 31 84 41 4 95 121 266 12 AOE 1 | . . . 1 . . . . . . . . . . . . . . Critical Strikes 31 | . 1 . 2 . . . . . . . 7 1 . 4 8 8 . Part Disruptions 1 | . . . 1 . . . . . . . . . . . . . . Damage Taken 15050 | . 220 466 987 203 . 127 151 328 976 400 1665 677 112 1167 2785 4541 245 Core 2538 | . 34 82 95 42 . 37 . 33 83 138 344 167 5 93 385 911 89 Absorbed by Shields 141 | . . . . . . . . . 17 . . . 20 104 . . . Ignored by Resistances 370 | . . . 7 . . . 21 26 118 . . . . . . 198 . Core Remaining (%) 57 | 100 . 53 . . . 56 100 . . . 14 . . . 23 . . Volleys Fired 658 | 7 27 21 95 19 1 6 23 9 54 12 85 30 26 82 74 69 18 Largest 3 | 2 2 2 2 2 1 1 2 2 2 2 2 2 2 2 2 3 1 Hottest 218 | 60 70 106 99 86 63 63 122 72 72 110 110 75 75 132 184 218 24 Shots Fired 925 | 14 54 42 102 25 1 6 45 18 101 21 100 36 30 106 96 111 17 Gun 385 | 14 54 42 30 19 1 2 22 . 63 21 18 6 11 26 27 12 17 Cannon 304 | . . . 65 . . . . . . . 51 15 6 57 35 75 . Launcher 118 | . . . 7 6 . 4 23 18 38 . 6 . 1 1 6 8 . Special 118 | . . . . . . . . . . . 25 15 12 22 28 16 . Kinetic 387 | 7 27 4 79 9 . . . . 63 . 58 21 17 40 14 31 17 Thermal 256 | 7 27 38 16 10 1 2 22 . . . . . . 43 48 42 . Explosive 40 | . . . 7 6 . 4 1 . . . 6 . 1 1 6 8 . Electromagnetic 124 | . . . . . . . 22 18 38 21 11 . . . . 14 . Robot Hit Streak 16 | 3 6 10 16 14 . 4 10 4 15 8 9 6 16 13 16 13 5 Robot Miss Streak 5 | 5 3 4 2 1 . 1 2 2 4 2 4 2 1 3 3 4 3 Penetration Max 1 | . . . 1 . . . . . . . . . . . . . . Secondary Targets 4 | . 1 2 . . . . . . 1 . . . . . . . . Max Gunslinging Chain 1 | . 1 1 . . . . . . 1 . . . . . . . . Shots Hit Robots 617 | 6 29 29 72 21 . 4 19 7 56 40 54 27 17 76 73 71 16 Core Hits 318 | 3 19 13 48 15 . 9 23 16 50 10 16 7 4 23 22 29 11 Critical Kills 2 | . . . . . . . . . . . . . . 1 . 1 . Critical Parts Destroyed 3 | . . . . . . . . . 2 . 1 . . . . . . Critical Strikes 29 | . . 1 7 1 . . 2 . 2 . 3 2 1 3 6 1 . Burn 4 | . . 1 . 1 . . 2 . . . . . . . . . . Meltdown 2 | . . . . . . . . . . . . . . 1 . 1 . Blast 18 | . . . 7 . . . . . . . 2 2 1 2 4 . . Smash 3 | . . . . . . . . . 2 . 1 . . . . . . Sever 2 | . . . . . . . . . . . . . . . 2 . . Melee Attacks 98 | . . . 1 . . . 4 2 17 31 9 1 . . 31 . 2 Impact 34 | . . . . . . . . . 8 16 8 . . . . . 2 Slashing 38 | . . . . . . . 4 2 1 . . . . . 31 . . Piercing 4 | . . . . . . . . . 4 . . . . . . . . Sneak Attacks 18 | . . . 1 . . . . . 1 12 . 1 . . 3 . . Combat Hostiles 1 | . . . . . . . . . 1 . . . . . . . . Follow-up Attacks . | . . . . . . . . . . . . . . . . . . Damage Inflicted 19414 | 73 358 392 3974 776 . 409 1134 681 2238 670 1587 574 231 1699 2103 2181 334 Guns 4452 | 73 354 392 369 262 . 35 292 . 826 197 154 88 96 453 418 179 264 Cannons 7515 | . . . 2737 . . . . . . . 893 478 29 1246 821 1311 . Explosions 6345 | . . . 868 499 . 374 842 681 1293 . 465 . 106 . 559 658 . Melee 1041 | . . . . . . . . . 119 472 75 . . . 305 . 70 Ramming 61 | . 4 . . 15 . . . . . 1 . 8 . . . 33 . Kinetic 7672 | 50 177 57 2918 109 . . . . 826 . 975 566 125 739 303 563 264 Thermal 3987 | 23 177 335 188 153 . 35 292 . 97 . . . . 960 936 791 . Explosive 3653 | . . . 868 499 . 374 124 . . . 465 . 106 . 559 658 . Electromagnetic 3000 | . . . . . . . 718 681 1196 197 72 . . . . 136 . Impact 736 | . . . . . . . . . 119 472 75 . . . . . 70 Slashing 305 | . . . . . . . . . . . . . . . 305 . . Piercing . | . . . . . . . . . . . . . . . . . . Highest Corruption 54 | . . 54 . . . . . . 7 13 36 1 1 2 2 11 19 Average Corruption 5 | . . 44 . . . . . . 2 4 18 1 1 1 2 4 17 Corruption Purged 5 | . . . . . . . . . 5 . . . . . . . . Corruption Blocked . | . . . . . . . . . . . . . . . . . . Effects 234 | . . 7 . . . . . . 15 29 85 4 11 12 31 19 21 Message Errors 60 | . . 2 . . . . . . 5 6 21 1 2 3 7 6 7 Matter Fused 46 | . . 3 . . . . . . 2 8 15 1 1 6 5 1 4 Heat Flow Errors 30 | . . . . . . . . . 3 6 10 . . 2 2 5 2 Energy Discharges 27 | . . . . . . . . . 1 4 9 . 1 . 7 1 4 Parts Rejected 3 | . . . . . . . . . . . 1 . . . 2 . . Parts Fused 7 | . . . . . . . . . 1 . 2 . 2 . 1 . 1 Data Loss (minor) 29 | . . 1 . . . . . . 2 3 11 2 2 . 5 2 1 Data Loss (major) 10 | . . 1 . . . . . . 1 1 4 . 1 . 1 1 . Misfires 10 | . . . . . . . . . . . 5 . 2 . 1 2 . Alerts 8 | . . . . . . . . . . 1 5 . . 1 . 1 . Misdirections 1 | . . . . . . . . . . . . . . . . . 1 Weapon Failures 3 | . . . . . . . . . . . 2 . . . . . 1 Overload Shots . | . . . . . . . . . . . . . . . . . . Overflow Damage 912 | . . . 209 53 . 85 2 4 122 113 94 68 . 59 48 55 . Projectiles 439 | . . . 207 . . . . . . . 46 68 . 59 8 51 . Explosions 195 | . . . 2 53 . 85 2 4 3 . 2 . . . 40 4 . Melee 278 | . . . . . . . . . 119 113 46 . . . . . . Knockbacks 36 | . . . 11 . . . . . . 3 6 3 . 2 . 11 . Impact 4 | . . . . . . . . . . 3 1 . . . . . . Kinetic 29 | . . . 9 . . . . . . . 5 3 . 2 . 10 . Secondary 3 | . . . 2 . . . . . . . . . . . . 1 . Self-Inflicted Damage 535 | . . . . 97 . 72 22 95 101 . . . . . 116 32 . Shots 22 | . . . . 4 . 3 2 3 6 . . . . . 3 1 . Rammed . | . . . . . . . . . . . . . . . . . . Targets Rammed 9 | . 1 . . 3 . . . . . 1 . 1 . . . 3 . Kicked 9 | . 1 . . 3 . . . . . 1 . 1 . . . 3 . Crushed . | . . . . . . . . . . . . . . . . . . Highest Temperature 532 | . 57 360 184 116 30 30 422 217 337 322 330 27 6 235 532 334 359 Average Temperature 88 | . 25 128 47 47 15 17 98 81 85 105 111 13 3 87 130 96 130 Received Heat Transfer 3070 | . 138 63 351 6 . . 36 81 249 93 189 93 33 321 598 819 . Effects 12 | . . 1 . . . . 1 2 2 2 3 . . . 1 . . Energy Bleed 3 | . . 1 . . . . 1 . . . 1 . . . . . . Interference 7 | . . . . . . . . 2 2 1 2 . . . . . . Short Circuit 2 | . . . . . . . . . . 1 . . . . 1 . . Siege Activations . | . . . . . . . . . . . . . . . . . . Martial Activations . | . . . . . . . . . . . . . . . . . . Shielding Activations . | . . . . . . . . . . . . . . . . . . Robots Disrupted 3 | . . . . . . . . . . 1 1 . . . . 1 . Combat Hostiles 3 | . . . . . . . . . . 1 1 . . . . 1 . Robots Corrupted 6 | . . . . . . . 2 1 1 . 1 . . . . 1 . Combat Hostiles 6 | . . . . . . . 2 1 1 . 1 . . . . 1 . Parts Fried 22 | . . . . . . . 3 4 6 4 3 . . . . 2 . Impact Corruptions 12 | . . . . . . . . . 2 7 2 . . . . 1 . Robots Melted 3 | . . . . . . . 1 . . . . . . 1 . 1 . Combat Hostiles 2 | . . . . . . . . . . . . . . 1 . 1 . Parts Melted 19 | . . 5 . . . . 2 . . . . . . 5 2 5 . Heat Transferred 6279 | 50 423 999 407 407 . 74 666 . 50 . . . . 1073 1251 879 . Parts Sabotaged . | . . . . . . . . . . . . . . . . . . Parts Stolen . | . . . . . . . . . . . . . . . . . . Parts Stripped . | . . . . . . . . . . . . . . . . . . Power Chain Reactions 7 | . . . . . . . 1 3 3 . . . . . . . . Alert | -11 -10 -10 -9 -9 -9 -8 -8 -7 -7 -7 -7 -6 -6 -6 -6 -5 -5 ------- Run | Yrd Mat Min Mat Min Exi Min Mat Fac Gar Fac Gar Fac Gar Fac Gar Fac Upp Maximum Alert Level 5 | . . . 2 . . . 1 1 5 3 2 1 2 1 3 2 . Low Security (%) 38 | 100 100 100 28 100 . 100 92 30 . . 10 81 33 31 . 40 . Level 1 29 | . . . 36 . . . 7 69 14 18 21 18 63 68 22 50 . Level 2 20 | . . . 34 . . . . . 22 51 67 . 3 . 39 8 . Level 3 7 | . . . . . . . . . 15 29 . . . . 38 . . Level 4 2 | . . . . . . . . . 42 . . . . . . . . Level 5 . | . . . . . . . . . 5 . . . . . . . . High Security . | . . . . . . . . . . . . . . . . . . Max Security . | . . . . . . . . . . . . . . . . . . Peak Influence 1714 | 10 105 50 556 188 . 152 247 383 1714 899 678 355 482 340 859 444 . Initial 899 | . . . . 90 . . 4 109 247 899 182 355 85 252 221 434 . Average 327 | . 42 6 288 96 . 79 65 249 984 599 448 125 241 205 579 204 . Influence Increases 9025 | 10 273 169 1065 332 . 172 537 434 1507 192 796 287 437 954 878 827 155 Destroy 0b10 Robot/C 4220 | . 180 140 680 200 . 120 240 180 640 120 260 160 120 360 380 400 40 Destroy 0b10 Robot/NC 170 | 10 10 5 50 10 . . 30 . 5 5 . . . 30 . 5 10 Destroy Leader 752 | . 42 20 166 30 . 20 64 40 30 40 20 50 10 118 . 102 . Allied During Kill 314 | . . . . . . . . . 10 5 18 65 36 96 7 77 . Successful Hack 116 | . 10 4 37 . . . 4 14 14 4 18 7 . 4 . . . Disable Machine 645 | . . . 60 45 . . 45 135 30 . . . 15 210 . 105 . Anti-Garrison Action 1250 | . . . . . . . . . 350 . 300 . 250 . 350 . . Destroy Structure 748 | . 1 . 72 47 . 32 19 5 128 3 105 5 6 121 96 108 . Partial Spotted 45 | . . . . . . . 15 30 . . . . . . . . . Lose Combat Pursuer 765 | . 30 . . . . . 120 30 300 15 75 . . 15 45 30 105 Influence Decreases 9025 | 10 273 169 833 478 86 160 308 322 146 1646 378 843 77 1120 365 1632 179 Entered New Map 2457 | . . . . 142 86 . 8 132 106 815 78 323 37 230 95 395 10 Time Decay 4111 | 10 184 149 483 316 . 150 300 180 . 546 . 476 . 620 . 538 159 Lost Part 632 | . . 20 40 20 . 10 . 10 20 10 100 23 10 50 130 179 10 Lost Ally 781 | . . . 10 . . . . . 20 . 200 21 30 220 140 140 . Purge Threat 1044 | . 89 . 300 . . . . . . 275 . . . . . 380 . Squads Dispatched 43 | . 2 . 1 . . . 6 4 . 6 . 4 . 12 . 8 . Investigation 13 | . . . . . . . 5 4 . 2 . . . 2 . . . Extermination 11 | . . . . . . . . . . 2 . 2 . 4 . 3 . Reinforcement 16 | . 2 . 1 . . . 1 . . 1 . 2 . 4 . 5 . Assault 1 | . . . . . . . . . . 1 . . . . . . . Garrison 2 | . . . . . . . . . . . . . . 2 . . . Intercept . | . . . . . . . . . . . . . . . . . . Searches Triggered . | . . . . . . . . . . . . . . . . . . Construction Impeded 1 | . . . . . . . . . . . . . . 1 . . . Haulers Reinforced 2 | . . . . . . . . . . . . 1 . . . 1 . Active Scanning Responses . | . . . . . . . . . . . . . . . . . . Cargo Convoy Interrupts . | . . . . . . . . . . . . . . . . . . Alert ID Control Effect 42 | . . . . . . . . . . . 11 7 10 5 4 5 . Stealth | -11 -10 -10 -9 -9 -9 -8 -8 -7 -7 -7 -7 -6 -6 -6 -6 -5 -5 --------- Run | Yrd Mat Min Mat Min Exi Min Mat Fac Gar Fac Gar Fac Gar Fac Gar Fac Upp Distress Signals 19 | . 2 . 6 . . . 5 1 . 2 . 1 . . . 2 . Communications Jammed 2 | . . . . . . . . . . . . . . . . 2 . Distress Signals 2 | . . . . . . . . . . . . . . . . 2 . Times Spotted 389 | . 19 6 51 9 . 6 23 10 51 11 34 24 15 36 42 38 14 Peak Tracking Total 7 | . 4 3 6 4 . 3 4 5 5 4 6 4 3 3 7 6 6 Tactical Retreats 30 | . 1 . . . . . 5 1 11 1 4 . . 1 3 1 2 Traps | -11 -10 -10 -9 -9 -9 -8 -8 -7 -7 -7 -7 -6 -6 -6 -6 -5 -5 ------- Run | Yrd Mat Min Mat Min Exi Min Mat Fac Gar Fac Gar Fac Gar Fac Gar Fac Upp Traps Triggered 30 | . . . . . . . 3 . 8 . 2 . 4 3 7 2 1 Indirectly . | . . . . . . . . . . . . . . . . . . Trap Hack Attempts 88 | . . . 12 . . . . . 16 . 7 . 53 . . . . Triggered 1 | . . . 1 . . . . . . . . . . . . . . Disarmed 2 | . . . . . . . . . 1 . 1 . . . . . . Reprogrammed 9 | . . . 4 . . . . . 2 . . . 3 . . . . Reused . | . . . . . . . . . . . . . . . . . . Traps Extracted 6 | . . . 4 . . . . . 2 . . . . . . . . Installed 2 | . . . . . . . . . 2 . . . . . . . . Triggered . | . . . . . . . . . . . . . . . . . . Most Traps Carried 7 | . . . 4 7 6 4 4 4 3 . . . . . . . . Machines | -11 -10 -10 -9 -9 -9 -8 -8 -7 -7 -7 -7 -6 -6 -6 -6 -5 -5 ---------- Run | Yrd Mat Min Mat Min Exi Min Mat Fac Gar Fac Gar Fac Gar Fac Gar Fac Upp Machines Disabled 59 | . . . 5 3 . . 3 9 8 . 3 . 4 14 3 7 . Max in Single Turn 3 | . . . 1 2 . . 2 3 1 . 1 . 1 1 1 1 . Garrison Access 1 | . . . . . . . . . . . . . . . . 1 . Garrison Relay 12 | . . . . . . . . . 4 . 2 . 3 . 3 . . Phase Generator 1 | . . . . . . . . . 1 . . . . . . . . Machines Repaired . | . . . . . . . . . . . . . . . . . . Machines Dismantled . | . . . . . . . . . . . . . . . . . . Machines Sabotaged . | . . . . . . . . . . . . . . . . . . Overloaded Fab Kills . | . . . . . . . . . . . . . . . . . . Hacking | -11 -10 -10 -9 -9 -9 -8 -8 -7 -7 -7 -7 -6 -6 -6 -6 -5 -5 --------- Run | Yrd Mat Min Mat Min Exi Min Mat Fac Gar Fac Gar Fac Gar Fac Gar Fac Upp Machines Accessed 61 | . 6 2 13 . 1 . 3 7 1 6 2 2 1 9 3 4 1 Terminals 39 | . 6 1 10 . . . 2 1 1 2 2 1 1 5 3 3 1 Fabricators 6 | . . . . . . . . 3 . 1 . . . 2 . . . Repair Stations . | . . . . . . . . . . . . . . . . . . Recycling Units 3 | . . . 1 . . . . 1 . 1 . . . . . . . Scanalyzers 6 | . . . 2 . . . 1 1 . 1 . . . 1 . . . Garrison Access 5 | . . . . . . . . 1 . 1 . 1 . 1 . 1 . Total Hacks 135 | . 9 4 38 . 1 . 13 15 1 13 3 4 1 17 7 8 1 Successful 78 | . 5 4 27 . 1 . 5 10 1 9 2 3 1 5 1 3 1 Failed 55 | . 4 . 10 . . . 8 5 . 4 1 1 . 11 6 5 . Catastrophic 9 | . 1 . . . . . . 3 . 2 . . . 2 . 1 . Database Lockouts 2 | . . . 1 . . . . . . . . . . 1 . . . Manual 43 | . 8 1 9 . 1 . 5 5 . 4 . 1 . 7 . 2 . Terminals 80 | . 9 3 23 . . . 8 1 1 3 3 3 1 10 7 7 1 Fabricators 10 | . . . . . . . . 5 . 1 . . . 4 . . . Repair Stations . | . . . . . . . . . . . . . . . . . . Recycling Units 5 | . . . 2 . . . . 1 . 2 . . . . . . . Scanalyzers 33 | . . . 13 . . . 5 7 . 6 . . . 2 . . . Garrison Access 5 | . . . . . . . . 1 . 1 . 1 . 1 . 1 . Terminal Hacks 33 | . 3 4 11 . 1 . 2 . 1 . 2 1 1 3 1 2 1 Record 3 | . . 1 1 . . . . . . . . . . . . . 1 Robot Analysis 4 | . 1 1 2 . . . . . . . . . . . . . . Prototype ID Bank 1 | . . . 1 . . . . . . . . . . . . . . Open Door 2 | . . 1 . . . . . . . . 1 . . . . . . Open DSF 1 | . . . . . . . . . . . . . . . . 1 . Emergency Access Points 5 | . . . . . . . . . 1 . 1 . . 2 1 . . Terminal Index 1 | . 1 . . . . . . . . . . . . . . . . Recycling Unit Index 1 | . . . 1 . . . . . . . . . . . . . . Garrison Index 1 | . . . . . . . . . . . . 1 . . . . . Alert Level 2 | . . . 2 . . . . . . . . . . . . . . Unreport Threat 4 | . 1 . 2 . . . . . . . . . . . . 1 . Locate Traps 3 | . . . 1 . . . 1 . . . . . . 1 . . . Dispatch Records 1 | . . . . . . . 1 . . . . . . . . . . Hauler Manifests 1 | . . . 1 . . . . . . . . . . . . . . Zone Layout 1 | . . 1 . . . . . . . . . . . . . . . Patrol Navigation 1 | . . . . . . . . . . . . . 1 . . . . Proto ID Catalog 1 | . . . . . 1 . . . . . . . . . . . . Fabricator Hacks . | . . . . . . . . . . . . . . . . . . Repair Station Hacks . | . . . . . . . . . . . . . . . . . . Recycling Unit Hacks 3 | . . . 2 . . . . 1 . . . . . . . . . Process 1 | . . . 1 . . . . . . . . . . . . . . Report Inventory 1 | . . . . . . . . 1 . . . . . . . . . Retrieve Matter 1 | . . . 1 . . . . . . . . . . . . . . Scanalyzer 25 | . . . 9 . . . 3 6 . 6 . . . 1 . . . Insert Component 9 | . . . 3 . . . 1 3 . 2 . . . . . . . Analyze 8 | . . . 4 . . . . 2 . 2 . . . . . . . Retrieve Study 8 | . . . 2 . . . 2 1 . 2 . . . 1 . . . Garrison Access Hacks 5 | . . . . . . . . 1 . 1 . 1 . 1 . 1 . Unlock Access 4 | . . . . . . . . 1 . 1 . 1 . 1 . . . Seal Access 1 | . . . . . . . . . . . . . . . . 1 . Unauthorized Hacks 12 | . 2 . 5 . . . . 2 . 2 . 1 . . . . . Terminals 8 | . 2 . 5 . . . . . . . . 1 . . . . . Track 2 | . . . 2 . . . . . . . . . . . . . . Assimilate 3 | . 1 . 1 . . . . . . . . 1 . . . . . Botnet 3 | . 1 . 2 . . . . . . . . . . . . . . Fabricators 3 | . . . . . . . . 2 . 1 . . . . . . . Recompile 3 | . . . . . . . . 2 . 1 . . . . . . . Repair Stations . | . . . . . . . . . . . . . . . . . . Recycling Units 1 | . . . . . . . . . . 1 . . . . . . . Mask 1 | . . . . . . . . . . 1 . . . . . . . Scanalyzers . | . . . . . . . . . . . . . . . . . . Garrison Access . | . . . . . . . . . . . . . . . . . . Data Cores Recovered 1 | . . . 1 . . . . . . . . . . . . . . Used . | . . . . . . . . . . . . . . . . . . Hacking Detections 40 | . 6 1 7 . . . 3 5 . 3 1 2 1 6 3 2 . Full Trace Events 6 | . . . . . . . 2 2 . . . . . 2 . . . Feedback Events . | . . . . . . . . . . . . . . . . . . Feedback Blocked . | . . . . . . . . . . . . . . . . . . Robot Schematics Acquired . | . . . . . . . . . . . . . . . . . . Robots Built . | . . . . . . . . . . . . . . . . . . Authchips . | . . . . . . . . . . . . . . . . . . Time . | . . . . . . . . . . . . . . . . . . Total Robot Build Rating . | . . . . . . . . . . . . . . . . . . Part Schematics Acquired 7 | . . . 3 . . . . 2 . 2 . . . . . . . Parts Built . | . . . . . . . . . . . . . . . . . . Authchips . | . . . . . . . . . . . . . . . . . . Time . | . . . . . . . . . . . . . . . . . . Total Part Build Rating . | . . . . . . . . . . . . . . . . . . Part Studies Acquired 8 | . . . 2 . . . 2 1 . 2 . . . 1 . . . Parts Repaired . | . . . . . . . . . . . . . . . . . . Time . | . . . . . . . . . . . . . . . . . . Parts Recycled . | . . . . . . . . . . . . . . . . . . Recycled Matter 11 | . . . 11 . . . . . . . . . . . . . . Retrieved Matter 11 | . . . 11 . . . . . . . . . . . . . . Retrieved Components . | . . . . . . . . . . . . . . . . . . Parts Scanalyzed 8 | . . . 3 . . . 1 2 . 2 . . . . . . . Part Schematics Acquired 7 | . . . 3 . . . . 2 . 2 . . . . . . . Parts Damaged 2 | . . . 1 . . . . . . 1 . . . . . . . Bothacking | -11 -10 -10 -9 -9 -9 -8 -8 -7 -7 -7 -7 -6 -6 -6 -6 -5 -5 ------------ Run | Yrd Mat Min Mat Min Exi Min Mat Fac Gar Fac Gar Fac Gar Fac Gar Fac Upp Used RIF Installer 5 | . . . . . . . . . 1 . 1 . 1 . 2 . . Command Fork 1 | . . . . . . . . . . . . . 1 . . . . Signal Jammer 1 | . . . . . . . . . . . . . . . 1 . . Patrol Navigation 1 | . . . . . . . . . . . . . . . 1 . . Alert ID Control 1 | . . . . . . . . . . . 1 . . . . . . Robots Hacked 77 | . . . 1 . . . . . 2 3 12 10 8 14 17 10 . Non-combat 13 | . . . 1 . . . . . . 3 1 3 . 3 . 2 . Combat 64 | . . . . . . . . . 2 . 11 7 8 11 17 8 . Robot Hacks Applied 98 | . . . 1 . . . . . 2 10 16 11 10 18 18 12 . parse_system 4 | . . . 1 . . . . . . 1 . . . 1 1 . . no_distress 4 | . . . . . . . . . . 3 . . . 1 . . . find_fabricator 2 | . . . . . . . . . . 1 . . . 1 . . . find_dsf 1 | . . . . . . . . . . 1 . . . . . . . release_backups 1 | . . . . . . . . . . . . 1 . . . . . check_alert 1 | . . . . . . . . . . 1 . . . . . . . purge_threat 4 | . . . . . . . . . . 2 . . . . . 2 . find_shortcuts 1 | . . . . . . . . . . . 1 . . . . . . find_garrison 1 | . . . . . . . . . . . . . . 1 . . . link_fov 1 | . . . . . . . . . . . . . . 1 . . . scatter_targeting 3 | . . . . . . . . . . . . . 1 1 1 . . spike_heat 2 | . . . . . . . . . . . 1 . 1 . . . . overload_power 4 | . . . . . . . . . . . 2 . . . 1 1 . amplify_resonance 2 | . . . . . . . . . . . . . 1 . 1 . . disable_weapons 2 | . . . . . . . . . . . . 1 . . 1 . . reboot_system 8 | . . . . . . . . . . . . . 1 3 1 3 . go_dormant 5 | . . . . . . . . . . . 1 . 2 1 1 . . overwrite_iff 7 | . . . . . . . . . . . 3 1 . 2 1 . . streamctrl_high 10 | . . . . . . . . . . . 3 . 2 1 4 . . formatsys_low 5 | . . . . . . . . . . 1 1 2 . . . 1 . formatsys_high 30 | . . . . . . . . . 2 . 4 6 2 5 6 5 . Relay Couplers Released 47 | . . . . . . . . . 16 . 7 . 13 . 11 . . Machine Destruction 47 | . . . . . . . . . 16 . 7 . 13 . 11 . . Attached 33 | . . . . . . . . . 3 1 9 3 4 3 8 2 . Fabnet Peak Effective % . | . . . . . . . . . . . . . . . . . . Robots Rewired 5 | . . . . . . . . . . 1 3 1 . . . . . Allies Hacked 3 | . . . . . . . . . . . . 2 . 1 . . . Hacks Repelled . | . . . . . . . . . . . . . . . . . . Allies | -11 -10 -10 -9 -9 -9 -8 -8 -7 -7 -7 -7 -6 -6 -6 -6 -5 -5 -------- Run | Yrd Mat Min Mat Min Exi Min Mat Fac Gar Fac Gar Fac Gar Fac Gar Fac Upp Total Allies 64 | . 1 . . . . . . . 3 2 12 10 6 10 12 8 . Largest Group 9 | . 1 1 1 . . . . . 2 3 5 9 8 8 4 7 . Highest-Rated Group 336 | . 10 9 9 . . . . . 44 90 142 276 244 336 128 228 . Highest-Rated Ally 95 | . 10 9 9 . . . . . 39 32 39 90 95 95 85 43 . Total Orders 12 | . . . . . . . . . . 3 7 . . . 1 1 . STAY 9 | . . . . . . . . . . 2 5 . . . 1 1 . FOLLOW 3 | . . . . . . . . . . 1 2 . . . . . . Ally Attacks 391 | . . . . . . . . . 17 8 75 44 59 73 43 72 . Total Damage 10020 | . . . . . . . . . 186 347 1357 1340 1473 2343 930 2044 . Kills 86 | . . . . . . . . . 6 2 13 13 14 17 9 12 . Allies Corrupted 1 | . . . . . . . . . . . . . . . . 1 . Allies Melted . | . . . . . . . . . . . . . . . . . . Intel | -11 -10 -10 -9 -9 -9 -8 -8 -7 -7 -7 -7 -6 -6 -6 -6 -5 -5 ------- Run | Yrd Mat Min Mat Min Exi Min Mat Fac Gar Fac Gar Fac Gar Fac Gar Fac Upp Active Infowar (turns) 7480 | 16 654 4 1859 756 314 309 862 362 1246 1098 . . . . . . . Optics 6806 | . . . 1859 756 314 309 862 362 1246 1098 . . . . . . . Seismic 674 | 16 654 4 . . . . . . . . . . . . . . . Robot Analysis Total 4 | . 1 1 2 . . . . . . . . . . . . . . Derelict Logs Recovered 6 | . . 2 . 2 . . . . . . . . . . . . 2 Drone Launches . | . . . . . . . . . . . . . . . . . . Drone Recoveries . | . . . . . . . . . . . . . . . . . . Exploration | -11 -10 -10 -9 -9 -9 -8 -8 -7 -7 -7 -7 -6 -6 -6 -6 -5 -5 ------------- Run | Yrd Mat Min Mat Min Exi Min Mat Fac Gar Fac Gar Fac Gar Fac Gar Fac Upp Turns Passed 19672 | 97 654 1050 1859 756 314 309 862 375 1246 1560 1904 1317 1241 2080 1951 1688 409 Spaces Moved 13330 | 54 448 472 958 618 291 274 739 562 1330 1790 1187 595 541 843 837 879 912 Core 187 | 7 . . . . . . . . . 29 . . . . . 151 . Treads . | . . . . . . . . . . . . . . . . . . Legs 8052 | 47 448 472 958 618 291 274 . . . 233 1187 595 541 843 837 708 . Wheels 23 | . . . . . . . . . . 23 . . . . . . . Hover . | . . . . . . . . . . . . . . . . . . Flight 5068 | . . . . . . . 739 562 1330 1505 . . . . . 20 912 Fastest Speed 15 | 50 120 120 105 105 105 105 50 50 50 50 116 183 187 185 178 24 15 Average Speed 112 | 115 120 198 150 105 105 105 50 50 50 60 128 196 187 188 184 150 26 Slowest Speed 322 | 120 120 260 260 105 105 105 50 50 50 120 190 240 188 190 322 180 30 Overloaded Moves 39 | . . . . . . . . . . . . . . . . . 39 Propulsion Burnouts . | . . . . . . . . . . . . . . . . . . Robots Hopped 21 | . . . . . . . 5 5 5 5 . . . . . . 1 Potential Cave-ins . | . . . . . . . . . . . . . . . . . . Cave-ins Triggered . | . . . . . . . . . . . . . . . . . . Exploration Rate (%) 54 | 4 70 91 92 88 71 67 45 11 90 15 67 16 64 27 67 23 74 Regions Visited 17 Branch Regions 5 Pre-discovered Areas 2 | . . . . 1 . . . . . . . . . . . . 1 Known Exits Taken 6 | . . . 1 . 1 . . 1 . 1 . 1 . 1 . . . Unknown Exits Taken 7 | 1 1 1 . 1 . 1 1 . . . . . . . . 1 . Scrap Searched 6 | . . 1 . 1 . 1 . . . . . . . . . . 3 Spaces Dug 11 | . . . 1 . . . 4 2 . 3 . . . . . . 1 Terrain Destroyed 494 | . . . 78 49 . 46 14 5 79 3 80 3 2 30 48 56 1 Melee 10 | . . . . . . . 4 2 . 3 . . . . . . 1 Projectile 77 | . . . 22 . . . . . . . 15 3 2 16 1 18 . AOE 407 | . . . 56 49 . 46 10 3 79 . 65 . . 14 47 38 . Terrain Rammed . | . . . . . . . . . . . . . . . . . . Walls Destroyed . | . . . . . . . . . . . . . . . . . . Machines Disabled . | . . . . . . . . . . . . . . . . . . Actions | -11 -10 -10 -9 -9 -9 -8 -8 -7 -7 -7 -7 -6 -6 -6 -6 -5 -5 --------- Run | Yrd Mat Min Mat Min Exi Min Mat Fac Gar Fac Gar Fac Gar Fac Gar Fac Upp Total 16974 | 71 514 551 1246 699 302 289 1179 628 1793 2236 1465 712 744 1243 1101 1141 1060 Wait 1883 | . 21 21 140 46 . 7 369 45 254 279 45 33 84 253 65 106 115 Move 13276 | 53 447 471 957 617 290 273 729 551 1321 1780 1186 595 540 842 836 878 910 Hop 18 | . . . . . . . 4 5 3 5 . . . . . . 1 Pick Up 169 | 4 9 4 10 6 4 . 11 5 7 37 15 5 7 11 14 15 5 Fast Attach 115 | 7 . 7 5 . . 1 5 1 8 21 11 7 3 8 11 17 3 Attach 86 | . . 1 10 2 . 1 2 2 5 3 9 4 1 5 17 22 2 Detach 42 | . . 4 4 . . 1 4 . 4 6 2 6 1 3 6 1 . Swap 160 | . 3 8 3 3 . . 12 4 36 9 13 6 11 18 21 13 . Drop 171 | . 6 14 9 3 7 . 16 4 14 51 9 . 2 17 5 10 4 Fire 658 | 7 27 21 95 19 1 6 23 9 54 12 85 30 26 82 74 69 18 Melee 98 | . . . 1 . . . 4 2 17 31 9 1 . . 31 . 2 Ram . | . . . . . . . . . . . . . . . . . . Kick 9 | . 1 . . 3 . . . . . 1 . 1 . . . 3 . Crush . | . . . . . . . . . . . . . . . . . . Escape Stasis 94 | . . . . . . . . . 51 . . . 14 4 20 5 . Rewire 105 | . . . . . . . . . 1 1 74 24 2 . 1 2 . Trap 90 | . . . 12 . . . . . 18 . 7 . 53 . . . . Miscellaneous . | . . . . . . . . . . . . . . . . . . Route ------- -11/Scrapyard -10/Materials (discovered 4 exits: *Mat x2 / *Min / *Sub) -10/Mines (discovered 2 exits: *Mat / Sub) -9/Materials (discovered 2 exits: *Mat / *Min) -9/Mines (discovered 3 exits: *Mat x2 / *Exi) -9/Exiles -8/Mines -8/Materials -7/Factory (discovered 2 exits: [*Low] / Gar) -7/Garrison (discovered 3 exits: *Fac x3) -7/Factory (discovered 2 exits: *Fac / Gar) -7/Garrison (discovered 2 exits: *Fac x2) -6/Factory -6/Garrison (discovered 2 exits: *Fac x2) -6/Factory (discovered 3 exits: *Fac x2 / Gar) -6/Garrison (discovered 2 exits: *Fac x2) -5/Factory -5/Upper Caves History --------- Turn | Location | Event 39 | -11/Scrapyard | Discovered new exit (range 16) 98 | -11/Scrapyard | Entered Materials 246 | -10/Materials | Discovered new exit (range 7) 304 | -10/Materials | Build established: Mutant 412 | -10/Materials | Discovered new exit (range 6) 534 | -10/Materials | Discovered new exit (range 16) 725 | -10/Materials | Discovered new exit (range 10) 752 | -10/Materials | Entered Mines 752 | -10/Mines | Accompanied by 1 ally 1252 | -10/Mines | Build established: Scavenger-Mutant 1295 | -10/Mines | Discovered new exit (range 10) 1582 | -10/Mines | Identified exit to Subcaves 1665 | -10/Mines | Met a Derelict who couldn't figure out how to use a Trap Extractor 1692 | -10/Mines | System corruption reached 10% 1707 | -10/Mines | System corruption reached 30% 1802 | -10/Mines | Entered Materials 1802 | -9/Materials | Accompanied by 1 ally 1802 | -9/Materials | Evolved 2 slots: Utility x2 1803 | -9/Materials | Identified exit to Mines 2653 | -9/Materials | Build established: Mutant 3078 | -9/Materials | Lost 3 parts (1n1u1w) 3172 | -9/Materials | Discovered new exit (range 18) 3293 | -9/Materials | Central database locked down 3661 | -9/Materials | Entered Mines 3698 | -9/Mines | Discovered new exit (range 8) 3945 | -9/Mines | Assembled infested the area 3970 | -9/Mines | Found a hidden stash of uninstalled traps 4039 | -9/Mines | Met 8R-AWN 4203 | -9/Mines | Learned location of 1 exit from Proximity Caves 4211 | -9/Mines | Discovered new exit (range 11) 4231 | -9/Mines | Received a Rocket Launcher from a helpful Derelict 4413 | -9/Mines | Discovered new exit (range 5) 4417 | -9/Mines | Entered Exiles 4418 | -9/Exiles | Identified exit to Mines 4444 | -9/Exiles | Welcomed by 8R-AWN 4485 | -9/Exiles | Met EX-HEX 4530 | -9/Exiles | Met EX-DEC 4577 | -9/Exiles | Met EX-BIN 4594 | -9/Exiles | Aligned with FarCom system 4595 | -9/Exiles | Given EX-Vault access code 4619 | -9/Exiles | Opened EX-Vault 4636 | -9/Exiles | Found Flying Fortress v7 4656 | -9/Exiles | Warned to stay clear of 0b10 Research branches 4731 | -9/Exiles | Left Exiles lab with Flying Fortress v7 4731 | -9/Exiles | Entered Mines 4965 | -8/Mines | Discovered new exit (range 12) 5040 | -8/Mines | Entered Materials 5040 | -8/Materials | Evolved 2 slots: Propulsion x2 5892 | -8/Materials | Discovered new exit (range 4) 5902 | -8/Materials | Entered Factory 5902 | -7/Factory | Evolved 2 slots: Power x1, Utility x1 6107 | -7/Factory | Identified exit to Garrison 6122 | -7/Factory | Discovered new exit (range 18) 6277 | -7/Factory | Entered Garrison 6365 | -7/Garrison | Triggered checkpoint 6413 | -7/Garrison | Triggered checkpoint 6508 | -7/Garrison | Triggered checkpoint 6530 | -7/Garrison | Triggered checkpoint 6558 | -7/Garrison | Destroyed 7 combat bots 6614 | -7/Garrison | Discovered new exit (range 13) 6739 | -7/Garrison | Triggered checkpoint 6748 | -7/Garrison | Garrison Relay disabled 6858 | -7/Garrison | Phase Generator disabled 6862 | -7/Garrison | Discovered new exit (range 14) 6881 | -7/Garrison | Triggered checkpoint 6959 | -7/Garrison | Garrison Relay disabled 6977 | -7/Garrison | Triggered checkpoint 7075 | -7/Garrison | Triggered checkpoint 7091 | -7/Garrison | Rescued a captive Derelict 7092 | -7/Garrison | Rescued a captive Derelict 7214 | -7/Garrison | Discovered new exit (range 16) 7303 | -7/Garrison | Triggered checkpoint 7303 | -7/Garrison | Installed Relay Interface Framework 7324 | -7/Garrison | Triggered checkpoint 7324 | -7/Garrison | Garrison Relay disabled 7457 | -7/Garrison | Garrison Relay disabled 7523 | -7/Garrison | Entered Factory 7523 | -7/Factory | Accompanied by 2 allies 8248 | -7/Factory | Discovered new exit (range 12) 8723 | -7/Factory | First assault squad dispatched 8741 | -7/Factory | System corruption reached 10% 9068 | -7/Factory | Identified exit to Garrison 9083 | -7/Factory | Entered Garrison 9083 | -7/Garrison | Accompanied by 3 allies 9133 | -7/Garrison | Expanded RIF knowledge: Alert ID Control 9221 | -7/Garrison | Build established: Bothacker-Mutant 9328 | -7/Garrison | Garrison Relay disabled 9365 | -7/Garrison | Core integrity fell below 50% 9537 | -7/Garrison | Triggered checkpoint 9593 | -7/Garrison | Triggered checkpoint 9593 | -7/Garrison | Triggered checkpoint 9679 | -7/Garrison | Triggered checkpoint 9982 | -7/Garrison | Triggered checkpoint 10008 | -7/Garrison | Lost 4 allies 10157 | -7/Garrison | Garrison Relay disabled 10189 | -7/Garrison | Heavy support dispatched to Factory 10200 | -7/Garrison | Discovered new exit (range 10) 10285 | -7/Garrison | Core integrity fell below 20% 10328 | -7/Garrison | Lost 5 parts (1p2n2u) 10378 | -7/Garrison | Discovered new exit (range 8) 10703 | -7/Garrison | System corruption reached 30% 10987 | -7/Garrison | Entered Factory 10987 | -6/Factory | Accompanied by 3 allies 10987 | -6/Factory | Evolved 2 slots: Utility x2 11896 | -6/Factory | P-60 Hacker assimilated allied Administrator 4b 12298 | -6/Factory | Identified exit to Garrison 12304 | -6/Factory | Entered Garrison 12304 | -6/Garrison | Accompanied by 8 allies 12453 | -6/Garrison | Lost 3 allies 12532 | -6/Garrison | Triggered checkpoint 12596 | -6/Garrison | Garrison Relay disabled 12720 | -6/Garrison | Triggered checkpoint 12724 | -6/Garrison | Triggered checkpoint 12772 | -6/Garrison | Triggered checkpoint 12857 | -6/Garrison | Triggered checkpoint 12985 | -6/Garrison | Discovered new exit (range 11) 13064 | -6/Garrison | Triggered checkpoint 13135 | -6/Garrison | Expanded RIF knowledge: Command Fork 13191 | -6/Garrison | Garrison Relay disabled 13386 | -6/Garrison | Triggered checkpoint 13450 | -6/Garrison | Garrison Relay disabled 13499 | -6/Garrison | Discovered new exit (range 10) 13524 | -6/Garrison | Found embedded Infiltrators 13545 | -6/Garrison | Entered Factory 13545 | -6/Factory | Accompanied by 5 allies 13737 | -6/Factory | Discovered new exit (range 13) 14046 | -6/Factory | Central database locked down 14429 | -6/Factory | Lost 9 allies 14628 | -6/Factory | Build established: Scavenger-Mutant 14999 | -6/Factory | Discovered new exit (range 15) 15098 | -6/Factory | Build established: Bothacker-Mutant 15495 | -6/Factory | Garrison activated, responded to threat 15613 | -6/Factory | Identified exit to Garrison 15625 | -6/Factory | Entered Garrison 15625 | -6/Garrison | Accompanied by 1 ally 15715 | -6/Garrison | Triggered checkpoint 15847 | -6/Garrison | Triggered checkpoint 15880 | -6/Garrison | Garrison Relay disabled 16046 | -6/Garrison | Triggered checkpoint 16068 | -6/Garrison | Spotted B-75 Beast 16086 | -6/Garrison | Hijacked Beast 5a control node with streamctrl_high 16093 | -6/Garrison | Triggered checkpoint 16218 | -6/Garrison | Lost 3 parts (1n1u1w) 16237 | -6/Garrison | Triggered checkpoint 16255 | -6/Garrison | Core integrity fell below 50% 16260 | -6/Garrison | Garrison Relay disabled 16276 | -6/Garrison | Expanded RIF knowledge: Signal Jamming 16308 | -6/Garrison | Destroyed Beast 5a 16396 | -6/Garrison | Discovered new exit (range 10) 16572 | -6/Garrison | Build established: Botlord-Mutant 16653 | -6/Garrison | Triggered checkpoint 16722 | -6/Garrison | Discovered new exit (range 14) 16830 | -6/Garrison | Lost 3 parts (1p2n) 16914 | -6/Garrison | Expanded RIF knowledge: Patrol Navigation 16987 | -6/Garrison | Lost 3 parts (1u2w) 17175 | -6/Garrison | Garrison Relay disabled 17195 | -6/Garrison | Triggered checkpoint 17576 | -6/Garrison | Entered Factory 17576 | -5/Factory | Accompanied by 4 allies 17576 | -5/Factory | Evolved 2 slots: Utility x1, Weapon x1 17608 | -5/Factory | Identified exit to DSF 17701 | -5/Factory | Discovered new exit (range 3) 18073 | -5/Factory | Build established: Botlord-Skirmisher 18409 | -5/Factory | P-70 Sage assimilated allied Warrior 6a 18573 | -5/Factory | Lost 4 allies 18956 | -5/Factory | Lost 15 parts (3p6n3u3w) 19087 | -5/Factory | Lost 3 parts (1p2u) 19170 | -5/Factory | Released all parts (12) 19173 | -5/Factory | Core integrity fell below 50% 19183 | -5/Factory | Core integrity fell below 20% 19183 | -5/Factory | System corruption reached 10% 19213 | -5/Factory | Lost 7 parts (2p3n1u1w) 19264 | -5/Factory | Entered Upper Caves 19441 | -5/Upper Caves | Encountered a Warlord checkpoint 19442 | -5/Upper Caves | Learned Factory stockpile data 19547 | -5/Upper Caves | Attracted the attention of an 0b10 checkpoint 19573 | -5/Upper Caves | Build established: Sprinter 19673 | -5/Upper Caves | Destroyed by S-27 Virus with Autogun Last Messages --------------- 19545_ S-27 Virus destroyed. 19547_ Y-64 Sentinel: "INTERCEPTING UNREGISTERED DERELICT." 19550_ S-27 Virus destroyed. 19552_ Acquired Lgt. Nuclear Core. 19564_ ZJ:V4UJSGAODILT1F#FZCNENZ>I 19568_ Sneak attack on L-41 Fighter. 19568_ L-41 Fighter destroyed. 19571_ Acquired 46 matter. 19571_ System corruption misinterpreted. 19571_ Triggered Fire Trap. 19571_ Burning plasma bursts from the floor. 19571_ Mak. Shrapnel Gun destroyed. 19576_ Carbon-fiber Leg+ fries itself beyond repair. 19581_ System corrupted: Heat flow error (+127). 19599_ 0OTBMXQSK6WF=XA%2T&9ZLSP 19622_ ,L0592DTZY8ILQNHTW0HA5#UZTG,L 19642_ %KO JT%X=NDCJGPSQK:D,Y,4HHEJLA0CEFL 19648_ Penetrated by Slug. 19658_ QX6H#RUXXXSZLI=TLCHD&2/TNDBPT8QZDIBN 19665_ Slug penetrates Wall. Map ----- +----------------------------------------------------+ | ?????????????????????????????????????????????????? | | ?????????????????????????????????????????????????? | | ?????????????????????????????????????????????????? | | ?????????????????????????????????????????????????? | | ?????????????????????????????????????????????????? | | ?????????????????????????????????????????????????? | | ?????????????????????????????????????????????????? | | ?????????????????????????????????????????????????? | | ????????????????????????????#####?????????######?? | | ????????????????????????????# ##???????## ##? | | ????????????????????????????# ##?????## #? | | ???????????????????????????## ##????# #? | | ??????????????????????????## ###??# ## | | ????????????????????????### ##?# # | | ???????????????????????## ### # | | ???????????????????????# ## ### | | ???????????????????????# ## #?? | | ???????????????????????## #### ##?? | | ???????????????????????## #??##### #### | | ???????????????????????# #??????## | | ???????????????????????#### #???????# | | ?????????????????????????## #???????# #### | | ????????????????????????## #??????##"##### | | ???????????????????????## #?????# | | ???????????????????????# ### #?????# " | | ???????????????????????# @##?# #?????# """" | | ???????????????????????# #?? #????# " | | ???????????????????????# ?? ##### #???## " | | ??????????????????????? s? ????? #?## """ | | ?????????????????????? ss #????? #?# """" | | ?????????????????????# #?????? ##?### "" | | ????????????????????? s ##?????? ##?#### | | ???????????????????? ##??????###??# | | ??????????????????? #??????## #### ## # | | ??????????????????? ??????## ## ### # | | ?????????????????? ## ?????## ##?## # | | ????????????????? #?# ?????# ##???# | | ????????????????? ??## ?????# ##???# ## | | ?????????????????????# #????## ##???# #? | | ?????????????????????# #????## ##????# #? | | ???????????????????????#?????# #?????## #? | | ??????????????????????????#### #####??## ## | | ??????????????????????????# ##??# | | ??????????????????????????# #### | | ??????????????????????????# ### ## | | ??????????????????????????#####?## ## | | ?????????????????????????????????# | | ?????????????????????????????##??## | | ?????????????????????????????# ?#### ## | | ?????????????????????????????# # #?## ##? | +----------------------------------------------------+ Best States ------------- Heat Dissipation 71 Coolant Potential 80 Energy Generation 36 Energy Capacity 540 Matter Stores 300 Matter Capacity 300 Sight Range 18 Terrain Scan Density 10 Armor Coverage 375 Resistance: KI 25 Resistance: EM 25 Melee Speed Boost 20 Evasion (%) 72 Targeting Accuracy 8 Armor Integrity Analysis 30 Particle Charging 25 Offensive Hacking 12 Defensive Hacking 14 Relay Coupler Types 6 Relay Coupler Value 135 Authchip Count 3 Trap Extractor Capacity 6 Item Schematics ----------------- Pulse Rifle | -9/Materials | Scanalyzed Imp. Trap Extractor | -9/Materials | Scanalyzed Imp. Flight Unit | -9/Materials | Scanalyzed Adv. Beam Rifle | -7/Factory | Scanalyzed Enh. Autogun | -7/Factory | Scanalyzed Prc. Grenade Launcher | -7/Factory | Scanalyzed Arm. Wheel | -7/Factory | Scanalyzed Robot Schematics ------------------ None Fabricated ------------ Nothing Repaired ---------- Nothing Studied --------- Carbon-fiber Leg | -9/Materials | Hacked Pulse Rifle | -9/Materials | Hacked Shock Bomb Launcher | -8/Materials | Hacked Nuclear Core | -8/Materials | Hacked Imp. Datajack | -7/Factory | Hacked Arm. Wheel | -7/Factory | Hacked Arc Projector | -7/Factory | Hacked Remote Datajack | -6/Factory | Hacked Alien Tech Used ----------------- None Achievements -------------- Analysis Probe Bending The Rules Factory Defaults Generalissimo Hack The Planet No Signal Oppo Buddy Pwned Versatile Challenges ------------ None Game ------ Seed ArmorShiftThrower Manual? 0 Play Time 03:46:48 Cumulative 93.4 hours Start 2026.07.26 @ 16:49:42 End 2026.07.26 @ 23:35:57 Sessions 3 Manual Loads 0 Difficulty Rogue Special Mode None Game No. 53 Rogue 53 Adventurer 0 Explorer 0 Win Type - Total 1 Types 1/0/0/0/0/0/0/0/0/0 Lore% 54 Gallery% 51 Achievement% 42 Wizard Run 0 Options --------- Layout 0 ASCII 0 Keyboard 1 Movement Vi Keybinds 0 Fullscreen 1 Font 24/Smallcaps Map View 76x50 Zoom Use 0% Tactical HUD 1 Map Filters NONE Filters NONE Steam 1 RUN: dee88c8e-d2e7-427b-8990-056ef11b3e99